fUST/lending_fUST_20250701
["ID","MTS","AMOUNT","RATE_DAILY","PERIOD"]
[368719409,1751322641610,-22380.07151686,0.00022,2]
[368719410,1751322641620,-7377.31664678,0.00022,2]
[368719411,1751322641629,-6376.35988688,0.00022,2]
[368719412,1751322641639,-28517.67213961,0.00022,2]
[368719413,1751322641648,-161.44317001,0.00022,2]
[368719414,1751322641658,-108078.37,0.00022,7]
[368719415,1751322641668,-29263.00265671,0.00022,2]
[368719417,1751322643647,-460.4227542,0.00019274,2]
[368719418,1751322643656,-33078.86936172,0.00022,2]
[368719419,1751322643860,-769.30355279,0.00022,2]
[368719420,1751322647050,-36.96382963,0.00022,2]
[368719481,1751323306929,279.633613,0.00013699,2]
[368719557,1751323634088,-504.94829285,0.00019174,2]
[368719558,1751323634109,-1200.0,0.00019209,2]
[368719559,1751323634128,-299.0,0.00019209,2]
[368719560,1751323634148,-300.0,0.00019209,2]
[368719561,1751323634169,-300.0,0.0001921,2]
[368719562,1751323634193,-300.0,0.0001921,2]
[368719563,1751323634213,-460.0,0.00019211,2]
[368719564,1751323634238,-532.3,0.00019211,2]
[368719565,1751323634259,-460.0,0.00019211,2]
[368719566,1751323634281,-470.76,0.00019211,2]
[368719567,1751323634301,-460.0,0.00019211,2]
[368719568,1751323634322,-460.0,0.00019211,2]
[368719569,1751323634342,-287.4,0.00019211,2]
[368719570,1751323634362,-460.0,0.00019211,2]
[368719571,1751323634384,-460.0,0.00019211,2]
[368719572,1751323634404,-460.0,0.00019211,2]
[368719573,1751323634424,-460.0,0.00019211,2]
[368719574,1751323634444,-513.50576798,0.00019211,2]
[368719575,1751323634466,-156.49,0.00019211,2]
[368719576,1751323634488,-580.16,0.00019211,2]
[368719577,1751323634510,-460.0,0.00019211,2]
[368719578,1751323634530,-460.0,0.00019211,2]
[368719579,1751323634550,-460.0,0.00019211,2]
[368719580,1751323634570,-460.0,0.00019211,2]
[368719581,1751323634592,-459.68096482,0.00019211,2]
[368719582,1751323634613,-130.55701347,0.00019211,2]
[368719583,1751323646154,-329.44298653,0.00019211,2]
[368719584,1751323646176,-460.0,0.00019211,2]
[368719585,1751323646197,-460.0,0.00019211,2]
[368719586,1751323646218,-81.96552452,0.00019211,2]
[368719587,1751323652140,-170.00300135,0.00019211,2]
[368719590,1751323748105,-300.0,0.0001921,2]
[368719591,1751323748128,-208.03147413,0.00019211,2]
[368719592,1751323748149,-460.0,0.00019211,2]
[368719593,1751323748172,-460.0,0.00019211,2]
[368719594,1751323748195,-460.0,0.00019211,2]
[368719595,1751323748221,-177.97477274,0.00019211,2]
[368719596,1751323748245,-460.0,0.00019211,2]
[368719597,1751323748266,-540.66936509,0.00019211,2]
[368719598,1751323748291,-460.0,0.00019211,2]
[368719599,1751323748312,-460.0,0.00019211,2]
[368719600,1751323748334,-460.0,0.00019211,2]
[368719601,1751323748357,-460.0,0.00019211,2]
[368719602,1751323748380,-460.0,0.00019211,2]
[368719603,1751323748401,-602.07,0.00019211,2]
[368719604,1751323748423,-460.0,0.00019211,2]
[368719605,1751323748444,-460.0,0.00019211,2]
[368719606,1751323748464,-571.92,0.00019211,2]
[368719607,1751323748485,-460.0,0.00019211,2]
[368719608,1751323748506,-491.75,0.00019211,2]
[368719609,1751323748528,-550.18,0.00019211,2]
[368719610,1751323748550,-460.0,0.00019211,2]
[368719611,1751323748571,-358.00059963,0.00019211,2]
[368719612,1751323748596,-156.73744723,0.00019211,2]
[368719613,1751323748617,-549.13,0.00019211,2]
[368719614,1751323748639,-6021.76330975,0.00019211,2]
[368719615,1751323760097,-5347.076882,0.00019211,2]
[368719634,1751323831779,-195.02761399,0.000189,2]
[368719635,1751323831790,-300.0,0.0001921,2]
[368719636,1751323831799,-300.0,0.0001921,2]
[368719637,1751323831810,-460.0,0.00019211,2]
[368719638,1751323831820,-4.97238601,0.00019211,2]
[368719639,1751323831840,-455.02761399,0.00019211,2]
[368719640,1751323831850,-575.42225939,0.00019211,2]
[368719641,1751323831859,-460.0,0.00019211,2]
[368719642,1751323831869,-460.0,0.00019211,2]
[368719643,1751323831879,-461.76540482,0.00019211,2]
[368719653,1751323832037,-260.6702744,0.00019211,2]
[368719655,1751323832047,-496.12266265,0.00019211,2]
[368719657,1751323832058,-5752.08616491,0.00019211,2]
[368719659,1751323832070,-1086.35750597,0.00019211,2]
[368719662,1751323832087,-4611.61714672,0.00019211,2]
[368719700,1751323838086,-2081.09899065,0.00019211,2]
[368719701,1751323838096,-460.45833372,0.00019274,2]
[368719702,1751323838106,-460.0,0.00019274,2]
[368719703,1751323838116,-460.0,0.00019274,2]
[368719704,1751323838125,-460.0,0.00019274,2]
[368719705,1751323838134,-460.0,0.00019274,2]
[368719706,1751323838143,-460.0,0.00019274,2]
[368719707,1751323838152,-449.57818869,0.00019274,2]
[368719708,1751323838169,-10.42181131,0.00019274,2]
[368719709,1751323838179,-460.0,0.00019274,2]
[368719710,1751323838188,-303.17443583,0.00019274,2]
[368719711,1751323838197,-460.0,0.00019274,2]
[368719712,1751323838207,-460.0,0.00019274,2]
[368719713,1751323838216,-460.0,0.00019274,2]
[368719714,1751323838228,-460.0,0.00019274,2]
[368719715,1751323838239,-585.52539801,0.00019274,2]
[368719716,1751323838248,-460.0,0.00019274,2]
[368719717,1751323838258,-460.0,0.00019274,2]
[368719718,1751323838269,-460.0,0.00019274,2]
[368719719,1751323838279,-460.0,0.00019274,2]
[368719720,1751323838289,-460.0,0.00019274,2]
[368719721,1751323838298,-460.0,0.00019274,2]
[368719722,1751323838308,-463.9,0.00019274,2]
[368719723,1751323838318,-525.14,0.00019274,2]
[368719724,1751323838327,-486.68,0.00019274,2]
[368719725,1751323838337,-460.0,0.00019274,2]
[368719726,1751323838346,-460.0,0.00019274,2]
[368719727,1751323838356,-500.0,0.00019274,2]
[368719728,1751323838366,-460.0,0.00019274,2]
[368719729,1751323838379,-275.20832754,0.00019274,2]
[368719730,1751323838389,-460.0,0.00019274,2]
[368719731,1751323838399,-473.6,0.00019274,2]
[368719732,1751323838409,-460.0,0.00019274,2]
[368719733,1751323838419,-460.0,0.00019275,2]
[368719734,1751323838429,-460.0,0.00019275,2]
[368719735,1751323838438,-500.0,0.00019275,2]
[368719736,1751323838448,-460.0,0.00019275,2]
[368719737,1751323838457,-460.0,0.00019275,2]
[368719738,1751323838467,-460.0,0.00019275,2]
[368719739,1751323838476,-460.0,0.00019275,2]
[368719740,1751323838486,-460.0,0.00019275,2]
[368719741,1751323838496,-428.68874295,0.00019275,2]
[368719742,1751323838506,-460.0,0.00019275,2]
[368719743,1751323838515,-460.0,0.00019275,2]
[368719744,1751323838525,-520.74,0.00019275,2]
[368719745,1751323838534,-460.0,0.00019275,2]
[368719746,1751323838543,-157.26,0.00019275,2]
[368719747,1751323838553,-394.47562695,0.00019464,2]
[368719748,1751323838562,-460.0,0.00019485,2]
[368719749,1751323838572,-195.89,0.00019485,2]
[368719750,1751323838581,-460.0,0.00019485,2]
[368719751,1751323838591,-400.0,0.00019548,2]
[368719752,1751323838601,-210.84,0.00019548,2]
[368719753,1751323838611,-460.0,0.00019759,2]
[368719754,1751323838620,-460.0,0.00019759,2]
[368719755,1751323838630,-190.0,0.00019931,2]
[368719756,1751323838639,-460.0,0.00020033,2]
[368719757,1751323838649,-381.94,0.00020033,2]
[368719758,1751323838658,-160.0,0.0002018,2]
[368719759,1751323838668,-12569.13231816,0.0002018,2]
[368719760,1751323838678,-230.31346914,0.0002018,2]
[368719761,1751323838687,-837.16779106,0.0002018,2]
[368719762,1751323838697,-847.41730813,0.0002018,2]
[368719763,1751323838706,-160.0,0.0002018,2]
[368719764,1751323838716,-214.99848635,0.0002018,2]
[368719765,1751323838726,-279.633613,0.00020187,2]
[368719766,1751323838737,-460.0,0.00020307,2]
[368719767,1751323838748,-190.0,0.00020389,2]
[368719768,1751323838758,-168.0,0.00020408,2]
[368719769,1751323838771,-168.0,0.0002044,2]
[368719770,1751323838782,-177.022,0.00020491,2]
[368719771,1751323838793,-160.287742,0.00020502,2]
[368719772,1751323838804,-460.0,0.00020581,2]
[368719773,1751323838814,-168.0,0.0002059,2]
[368719774,1751323838823,-168.0,0.00020732,2]
[368719775,1751323838833,-460.0,0.00020855,2]
[368719776,1751323838844,-420.0,0.00020934,2]
[368719777,1751323838854,-168.0,0.00021018,2]
[368719778,1751323838864,-168.0,0.00021043,2]
[368719779,1751323838874,-460.0,0.00021129,2]
[368719780,1751323838884,-732.65,0.00021169,2]
[368719781,1751323838894,-460.0,0.00021169,2]
[368719782,1751323838903,-500.0,0.0002117,2]
[368719783,1751323838914,-500.0,0.0002117,2]
[368719784,1751323838924,-500.0,0.0002117,2]
[368719785,1751323838934,-500.0,0.0002117,2]
[368719786,1751323838945,-207.4,0.0002117,2]
[368719787,1751323838955,-500.0,0.0002117,2]
[368719788,1751323838965,-173.60415826,0.0002117,2]
[368719789,1751323838975,-151.0,0.0002117,2]
[368719790,1751323838984,-500.0,0.00021205,2]
[368719791,1751323838994,-460.0,0.00021403,2]
[368719792,1751323839006,-732.65,0.00021443,2]
[368719793,1751323839015,-460.0,0.00021443,2]
[368719794,1751323839025,-168.0,0.00021479,2]
[368719795,1751323839036,-1000.0,0.00021531,5]
[368719796,1751323839046,-442.0,0.00021577,2]
[368719797,1751323839056,-168.0,0.00021635,2]
[368719798,1751323839066,-460.0,0.00021676,2]
[368719799,1751323839077,-732.65,0.00021717,2]
[368719800,1751323839095,-460.0,0.00021717,2]
[368719801,1751323839104,-18223.77478262,0.000218,2]
[368719802,1751323839115,-863.73448514,0.000218,2]
[368719803,1751323839125,-863.73448512,0.00021825,2]
[368719804,1751323839136,-863.73448512,0.0002185,2]
[368719805,1751323839147,-863.73448512,0.00021875,2]
[368719806,1751323839157,-3227.46,0.0002188,10]
[368719807,1751323839166,-319.39,0.0002189,3]
[368719808,1751323839176,-159.7,0.0002189,3]
[368719809,1751323839187,-479.1,0.0002189,3]
[368719810,1751323839196,-2689.55,0.0002189,10]
[368719811,1751323839206,-343.06382769,0.00021899,2]
[368719812,1751323839215,-500.0,0.00021899,2]
[368719813,1751323839225,-500.0,0.00021899,2]
[368719814,1751323839238,-500.0,0.00021899,2]
[368719815,1751323839248,-500.0,0.00021899,2]
[368719816,1751323839259,-500.0,0.00021899,2]
[368719817,1751323839268,-500.0,0.00021899,2]
[368719818,1751323839279,-500.0,0.00021899,2]
[368719819,1751323839288,-500.0,0.00021899,2]
[368719820,1751323839298,-454.95080537,0.00021899,2]
[368719821,1751323839310,-500.0,0.00021899,2]
[368719822,1751323839319,-500.0,0.00021899,2]
[368719823,1751323839329,-500.0,0.00021899,2]
[368719824,1751323839338,-500.0,0.00021899,2]
[368719825,1751323839348,-400.0,0.00021899,2]
[368719826,1751323839358,-500.0,0.00021899,2]
[368719827,1751323839368,-500.0,0.00021899,2]
[368719828,1751323839378,-220932.93105386,0.000219,2]
[368719834,1751323840118,-460.0,0.00019211,2]
[368719835,1751323840129,-251.658522,0.000219,2]
[368719836,1751323840141,-2209.36726407,0.000219,2]
[368719837,1751323840154,-651.75405043,0.000219,2]
[368719838,1751323840167,-7329.24365692,0.000219,2]
[368719844,1751323843012,-5621.14065639,0.000219,2]
[368719845,1751323845948,-796.64125129,0.000219,2]
[368719846,1751323845970,-406.0,0.000219,2]
[368719868,1751324519454,263.496279,0.00013699,2]
[368719871,1751324817205,-208.273142,0.00018193,2]
[368719872,1751324817227,-212.09666137,0.00019101,2]
[368719873,1751324817249,-479.1,0.00019101,3]
[368719874,1751324817270,-648.61276797,0.0001911,2]
[368719875,1751324817291,-1664.13727334,0.00019111,2]
[368719876,1751324837230,-186.54472829,0.00019101,3]
[368719877,1751324846075,-453.71527171,0.00019101,3]
[368719878,1751324846098,-300.0,0.0001911,2]
[368719879,1751324846122,-2694.95976679,0.00019111,2]
[368719880,1751324847088,-392.23348813,0.00019111,2]
[368719881,1751324945084,-438.81864138,0.00019011,2]
[368719882,1751324945109,-323.08,0.00019101,3]
[368719883,1751324945131,-397.68,0.00019101,3]
[368719884,1751324945153,-198.84,0.00019101,3]
[368719885,1751324945176,-596.52,0.00019101,3]
[368719886,1751324945205,-300.0,0.00019109,2]
[368719887,1751324945228,-500.0,0.0001911,2]
[368719888,1751324945251,-1040.47031089,0.0001911,2]
[368719889,1751324945274,-1040.47031089,0.0001911,2]
[368719890,1751324945298,-233.9501257,0.0001911,2]
[368719891,1751324945321,-1040.47031089,0.0001911,2]
[368719892,1751324945343,-500.0,0.0001911,2]
[368719893,1751324945366,-1040.47031089,0.0001911,2]
[368719894,1751324945391,-1040.47031089,0.0001911,2]
[368719895,1751324945415,-500.0,0.0001911,2]
[368719896,1751324945439,-1040.47031089,0.0001911,2]
[368719897,1751324945463,-1040.47031089,0.0001911,2]
[368719898,1751324945607,-265.82580468,0.0001911,2]
[368719899,1751324945631,-1040.47031089,0.0001911,2]
[368719900,1751324945655,-1040.47031089,0.0001911,2]
[368719901,1751324945677,-1040.47031089,0.0001911,2]
[368719902,1751324945699,-1040.47031089,0.0001911,2]
[368719903,1751324945721,-824.95694202,0.0001911,2]
[368719906,1751324958214,-215.51336887,0.0001911,2]
[368719907,1751324958246,-1040.47031089,0.0001911,2]
[368719908,1751324958276,-1040.47031089,0.0001911,2]
[368719909,1751324958308,-1040.47031089,0.0001911,2]
[368719910,1751324958337,-1040.47031089,0.0001911,2]
[368719911,1751324958366,-500.0,0.0001911,2]
[368719912,1751324958395,-500.0,0.0001911,2]
[368719913,1751324958423,-500.0,0.0001911,2]
[368719914,1751324958452,-500.0,0.0001911,2]
[368719915,1751324958479,-500.0,0.0001911,2]
[368719916,1751324958510,-500.0,0.0001911,2]
[368719917,1751324958537,-500.0,0.0001911,2]
[368719918,1751324958563,-500.0,0.0001911,2]
[368719919,1751324958594,-500.0,0.0001911,2]
[368719920,1751324958621,-268.8338297,0.0001911,2]
[368719921,1751324958649,-500.0,0.0001911,2]
[368719922,1751324958678,-500.0,0.0001911,2]
[368719923,1751324958707,-500.0,0.0001911,2]
[368719924,1751324958736,-378.90704628,0.0001911,2]
[368719925,1751324958767,-500.0,0.0001911,2]
[368719926,1751324958792,-500.0,0.0001911,2]
[368719927,1751324958817,-500.0,0.0001911,2]
[368719928,1751324958843,-500.0,0.0001911,2]
[368719929,1751324958873,-500.0,0.0001911,2]
[368719930,1751324958902,-500.0,0.0001911,2]
[368719931,1751324958926,-242.31837674,0.0001911,2]
[368719932,1751324958953,-500.0,0.0001911,2]
[368719933,1751324958979,-500.0,0.0001911,2]
[368719934,1751324959004,-500.0,0.0001911,2]
[368719935,1751324959028,-500.0,0.0001911,2]
[368719936,1751324959054,-152.37210589,0.0001911,2]
[368719937,1751324959080,-47.64483552,0.0001911,2]
[368719938,1751324960109,-452.35516448,0.0001911,2]
[368719939,1751324960137,-259.16412482,0.0001911,2]
[368719940,1751324960163,-448.85424155,0.0001911,2]
[368719941,1751324960188,-1040.47031089,0.0001911,2]
[368719942,1751324960213,-162.59933981,0.0001911,2]
[368719943,1751324960238,-500.0,0.0001911,2]
[368719944,1751324960264,-294.70801176,0.0001911,2]
[368719945,1751324960289,-500.0,0.0001911,2]
[368719946,1751324960316,-1144.51734196,0.0001911,2]
[368719947,1751324960345,-1144.51734196,0.0001911,2]
[368719948,1751324960371,-1144.51734196,0.0001911,2]
[368719949,1751324960397,-1144.51734196,0.0001911,2]
[368719950,1751324960424,-1144.51734196,0.0001911,2]
[368719951,1751324960450,-1144.51734196,0.0001911,2]
[368719952,1751324960475,-1144.51734196,0.0001911,2]
[368719953,1751324960500,-1144.51734196,0.0001911,2]
[368719954,1751324960525,-1144.51734196,0.0001911,2]
[368719955,1751324960554,-233.55546359,0.0001911,2]
[368719956,1751324960737,-500.0,0.0001911,2]
[368719957,1751324960771,-500.0,0.0001911,2]
[368719958,1751324960794,-410.10357548,0.0001911,2]
[368719959,1751324960818,-500.0,0.0001911,2]
[368719960,1751324960840,-500.0,0.0001911,2]
[368719961,1751324960861,-500.0,0.0001911,2]
[368719962,1751324960886,-500.0,0.0001911,2]
[368719963,1751324960910,-300.43580226,0.0001911,2]
[368719964,1751324960932,-365248.66947174,0.00019111,2]
[368719965,1751324960955,-1004.46417185,0.00019111,2]
[368719966,1751324960976,-319.39,0.00019201,3]
[368719967,1751324960997,-159.7,0.00019201,3]
[368719968,1751324961017,-600.0,0.00019207,2]
[368719969,1751324961037,-7377.31664678,0.00019208,2]
[368719970,1751324961057,-9734.61320246,0.00019208,2]
[368719971,1751324961078,-300.0,0.00019208,2]
[368719972,1751324961098,-1200.0,0.00019208,2]
[368719973,1751324961118,-607.39853005,0.00019208,2]
[368719974,1751324961139,-460.0,0.00019208,2]
[368719975,1751324961161,-460.0,0.00019208,2]
[368719976,1751324961183,-460.0,0.00019208,2]
[368719977,1751324961204,-460.0,0.00019208,2]
[368719978,1751324961226,-208.61,0.00019208,2]
[368719979,1751324961248,-460.0,0.00019208,2]
[368719980,1751324961269,-460.0,0.00019208,2]
[368719981,1751324961293,-22380.07151686,0.00019209,2]
[368719982,1751324961314,-460.0,0.00019209,2]
[368719983,1751324961333,-460.0,0.00019209,2]
[368719984,1751324961354,-460.0,0.00019209,2]
[368719985,1751324961374,-460.0,0.00019209,2]
[368719986,1751324961394,-533.6180179,0.00019209,2]
[368719987,1751324961416,-460.0,0.00019209,2]
[368719988,1751324961439,-460.0,0.00019209,2]
[368719989,1751324961460,-460.0,0.00019209,2]
[368719990,1751324961480,-460.0,0.00019209,2]
[368719991,1751324961501,-460.0,0.00019209,2]
[368719992,1751324961522,-460.0,0.00019209,2]
[368719993,1751324961542,-460.0,0.00019209,2]
[368719994,1751324961563,-460.0,0.00019209,2]
[368719995,1751324961587,-460.0,0.00019209,2]
[368719996,1751324961607,-460.0,0.00019209,2]
[368719997,1751324961630,-404.0174903,0.00019209,2]
[368719998,1751324961652,-460.0,0.00019209,2]
[368719999,1751324961673,-460.0,0.00019209,2]
[368720000,1751324961694,-460.0,0.00019209,2]
[368720001,1751324961713,-460.0,0.00019209,2]
[368720002,1751324961735,-460.0,0.00019209,2]
[368720003,1751324961756,-460.0,0.00019209,2]
[368720004,1751324961778,-460.0,0.00019209,2]
[368720005,1751324961798,-460.0,0.0001921,2]
[368720006,1751324961818,-1000.0,0.0001921,2]
[368720007,1751324961838,-460.0,0.0001921,2]
[368720008,1751324961860,-460.0,0.0001921,2]
[368720009,1751324961880,-460.0,0.0001921,2]
[368720010,1751324961900,-460.0,0.0001921,2]
[368720011,1751324961921,-460.0,0.0001921,2]
[368720012,1751324961942,-460.0,0.0001921,2]
[368720013,1751324961963,-460.0,0.0001921,2]
[368720014,1751324961984,-460.0,0.0001921,2]
[368720015,1751324962007,-460.0,0.0001921,2]
[368720016,1751324962029,-460.0,0.0001921,2]
[368720017,1751324962051,-460.0,0.0001921,2]
[368720018,1751324962072,-226.44411232,0.0001921,2]
[368720019,1751324962092,-460.0,0.0001921,2]
[368720020,1751324962112,-460.0,0.0001921,2]
[368720021,1751324962133,-460.0,0.0001921,2]
[368720022,1751324962153,-460.0,0.0001921,2]
[368720023,1751324962173,-460.0,0.0001921,2]
[368720024,1751324962193,-460.0,0.0001921,2]
[368720025,1751324962213,-460.0,0.0001921,2]
[368720026,1751324962233,-470.82373371,0.0001921,2]
[368720027,1751324962254,-460.0,0.0001921,2]
[368720028,1751324962275,-460.0,0.0001921,2]
[368720029,1751324962296,-460.0,0.0001921,2]
[368720030,1751324962317,-460.0,0.0001921,2]
[368720031,1751324962339,-460.0,0.0001921,2]
[368720032,1751324962360,-460.0,0.0001921,2]
[368720033,1751324962381,-460.0,0.0001921,2]
[368720034,1751324962402,-460.0,0.0001921,2]
[368720035,1751324962423,-460.0,0.0001921,2]
[368720036,1751324962444,-460.0,0.0001921,2]
[368720037,1751324962465,-460.0,0.0001921,2]
[368720038,1751324962485,-460.0,0.0001921,2]
[368720039,1751324962505,-460.0,0.0001921,2]
[368720040,1751324962526,-460.0,0.0001921,2]
[368720041,1751324962545,-460.0,0.0001921,2]
[368720042,1751324962567,-460.0,0.0001921,2]
[368720043,1751324962592,-460.0,0.0001921,2]
[368720044,1751324962615,-460.0,0.0001921,2]
[368720045,1751324962636,-460.0,0.0001921,2]
[368720046,1751324962661,-460.0,0.0001921,2]
[368720047,1751324962682,-460.0,0.0001921,2]
[368720048,1751324962702,-460.0,0.0001921,2]
[368720049,1751324962722,-460.0,0.0001921,2]
[368720050,1751324962748,-460.0,0.0001921,2]
[368720051,1751324962771,-321.64920744,0.0001921,2]
[368720052,1751324962790,-460.0,0.0001921,2]
[368720053,1751324962810,-460.0,0.0001921,2]
[368720054,1751324962830,-460.0,0.0001921,2]
[368720055,1751324962852,-460.0,0.0001921,2]
[368720056,1751324962875,-460.0,0.0001921,2]
[368720057,1751324962896,-460.0,0.0001921,2]
[368720058,1751324962917,-460.0,0.0001921,2]
[368720059,1751324962937,-460.0,0.0001921,2]
[368720060,1751324962958,-460.0,0.0001921,2]
[368720061,1751324962977,-460.0,0.0001921,2]
[368720062,1751324962997,-325.73523774,0.0001921,2]
[368720063,1751324963017,-460.0,0.0001921,2]
[368720064,1751324963036,-460.0,0.0001921,2]
[368720065,1751324963056,-460.0,0.0001921,2]
[368720066,1751324963076,-460.0,0.0001921,2]
[368720067,1751324963096,-573.88237615,0.0001921,2]
[368720068,1751324963116,-460.0,0.0001921,2]
[368720069,1751324963136,-460.0,0.0001921,2]
[368720070,1751324963156,-460.0,0.0001921,2]
[368720071,1751324963175,-460.0,0.0001921,2]
[368720072,1751324963195,-460.0,0.0001921,2]
[368720073,1751324963215,-460.0,0.0001921,2]
[368720074,1751324963235,-460.0,0.0001921,2]
[368720075,1751324963256,-460.0,0.0001921,2]
[368720076,1751324963276,-460.0,0.0001921,2]
[368720077,1751324963297,-460.0,0.0001921,2]
[368720078,1751324963318,-460.0,0.0001921,2]
[368720079,1751324963338,-460.0,0.0001921,2]
[368720080,1751324963359,-460.0,0.0001921,2]
[368720081,1751324963381,-460.0,0.0001921,2]
[368720082,1751324963401,-569.09086022,0.0001921,2]
[368720083,1751324963422,-460.0,0.0001921,2]
[368720084,1751324963443,-460.0,0.0001921,2]
[368720085,1751324963462,-460.0,0.0001921,2]
[368720086,1751324963482,-460.0,0.0001921,2]
[368720087,1751324963503,-460.0,0.0001921,2]
[368720088,1751324963522,-460.0,0.0001921,2]
[368720089,1751324963677,-460.0,0.0001921,2]
[368720090,1751324963698,-460.0,0.0001921,2]
[368720091,1751324963719,-460.0,0.0001921,2]
[368720092,1751324963740,-460.0,0.0001921,2]
[368720093,1751324963761,-460.0,0.0001921,2]
[368720094,1751324963781,-460.0,0.0001921,2]
[368720095,1751324963801,-460.0,0.0001921,2]
[368720096,1751324963821,-460.0,0.0001921,2]
[368720097,1751324963842,-460.0,0.0001921,2]
[368720098,1751324963862,-460.0,0.0001921,2]
[368720099,1751324963882,-460.0,0.0001921,2]
[368720100,1751324963903,-460.0,0.0001921,2]
[368720101,1751324963924,-460.0,0.0001921,2]
[368720102,1751324963944,-460.0,0.0001921,2]
[368720103,1751324963964,-460.0,0.0001921,2]
[368720104,1751324963985,-460.0,0.0001921,2]
[368720105,1751324964005,-460.0,0.0001921,2]
[368720106,1751324964026,-460.0,0.0001921,2]
[368720107,1751324964046,-460.0,0.0001921,2]
[368720108,1751324964066,-460.0,0.0001921,2]
[368720109,1751324964087,-460.0,0.0001921,2]
[368720110,1751324964107,-460.0,0.0001921,2]
[368720111,1751324964126,-460.0,0.0001921,2]
[368720112,1751324964145,-460.0,0.0001921,2]
[368720113,1751324964165,-460.0,0.0001921,2]
[368720114,1751324964187,-460.43508757,0.0001921,2]
[368720115,1751324964416,-460.0,0.0001921,2]
[368720116,1751324964437,-350.35027034,0.0001921,2]
[368720117,1751324964460,-460.76793674,0.0001921,2]
[368720118,1751324964482,-460.0,0.0001921,2]
[368720119,1751324964502,-460.0,0.0001921,2]
[368720120,1751324964522,-460.0,0.0001921,2]
[368720121,1751324964543,-460.0,0.0001921,2]
[368720122,1751324964563,-180.9197015,0.0001921,2]
[368720123,1751324964588,-460.0,0.0001921,2]
[368720124,1751324964610,-460.0,0.0001921,2]
[368720125,1751324964632,-460.0,0.0001921,2]
[368720126,1751324964656,-216.99057248,0.0001921,2]
[368720127,1751324964676,-460.0,0.0001921,2]
[368720128,1751324964696,-460.0,0.0001921,2]
[368720129,1751324964716,-461.2659029,0.0001921,2]
[368720130,1751324964738,-460.0,0.0001921,2]
[368720131,1751324964759,-460.0,0.0001921,2]
[368720132,1751324964779,-460.0,0.0001921,2]
[368720133,1751324964800,-460.0,0.0001921,2]
[368720134,1751324964820,-460.0,0.0001921,2]
[368720135,1751324964841,-460.0,0.0001921,2]
[368720136,1751324964861,-460.0,0.0001921,2]
[368720137,1751324964883,-460.0,0.0001921,2]
[368720138,1751324964904,-460.0,0.0001921,2]
[368720139,1751324964926,-460.0,0.0001921,2]
[368720140,1751324964948,-460.0,0.0001921,2]
[368720141,1751324964969,-461.17907209,0.0001921,2]
[368720142,1751324964991,-460.0,0.0001921,2]
[368720143,1751324965012,-460.0,0.0001921,2]
[368720144,1751324965032,-460.0,0.0001921,2]
[368720145,1751324965055,-460.0,0.0001921,2]
[368720146,1751324965079,-374.88,0.0001921,2]
[368720147,1751324965099,-460.0,0.0001921,2]
[368720148,1751324965122,-460.0,0.0001921,2]
[368720149,1751324965145,-460.0,0.0001921,2]
[368720150,1751324965166,-460.0,0.0001921,2]